bitfinex-derivatives/quotes_ETHF0:USTF0_20241018
["timestamp","ask_amount","ask_price","bid_price","bid_amount"]
[1729219187427,3.2078,2636.9,2636.4,4.03187695]
[1729219187814,3.2078,2636.9,2636.7,0.37934]
[1729219188014,3.2078,2636.9,2636.8,0.37934]
[1729219189827,3.58712,2636.9,2636.4,4.03187695]
[1729219190022,3.2078,2636.9,2636.7,0.37935]
[1729219190330,3.2078,2636.9,2636.4,4.03187695]
[1729219190518,3.2078,2636.9,2636.7,0.37934]
[1729219192035,3.58712,2636.9,2636.7,0.37935]
[1729219192232,3.2078,2636.9,2636.7,0.37935]
[1729219192726,0.4286,2637.0,2636.7,0.37935]
[1729219192931,3.6364,2637.0,2636.7,0.37935]
[1729219193133,4.01572,2637.0,2636.7,0.37935]
[1729219193919,4.01572,2637.0,2636.4,7.23967695]
[1729219194124,4.01572,2637.0,2636.5,0.37938]
[1729219194337,4.01572,2637.0,2636.7,0.37934]
[1729219195336,3.6364,2637.0,2636.8,0.37932]
[1729219195530,3.6364,2637.0,2636.9,0.37932]
[1729219195531,0.4286,2637.0,2636.9,0.37932]
[1729219195835,0.37927,2637.3,2637.1,0.37929]
[1729219196037,0.79416,2637.4,2636.8,0.37934]
[1729219196238,0.79416,2637.4,2637.2,0.37927]
[1729219197030,0.4149,2637.4,2637.2,0.37927]
[1729219197231,0.79416,2637.4,2637.2,0.37927]
[1729219197429,0.37927,2637.3,2637.2,0.37928]
[1729219198337,0.79416,2637.4,2637.2,0.37927]
[1729219198636,0.37928,2637.3,2636.9,0.404]
[1729219198836,0.37928,2637.3,2637.2,0.37928]
[1729219199436,0.37928,2637.3,2637.1,0.37929]
[1729219199637,3.3749,2637.4,2636.9,0.404]
[1729219199934,0.37927,2637.3,2637.2,0.37928]
[1729219200136,0.37929,2637.2,2636.9,0.404]
[1729219200438,2.96,2637.3,2636.9,0.404]
[1729219200625,2.96,2637.3,2636.1,2.96]
[1729219200626,0.37933,2636.9,2636.4,1.2277]
[1729219200831,0.392,2636.8,2636.7,0.37935]
[1729219201538,0.77134,2636.8,2636.7,0.37935]
[1729219201734,0.392,2636.8,2636.7,0.37935]
[1729219203334,0.392,2636.8,2636.6,0.37936]
[1729219203542,0.392,2636.8,2636.7,0.37935]
[1729219203739,0.392,2636.8,2636.4,4.1877]
[1729219204038,0.392,2636.8,2636.7,0.37935]
[1729219204931,0.392,2636.8,2636.4,0.4156]
[1729219204932,0.37937,2636.6,2636.4,0.4156]
[1729219205139,0.37941,2636.3,2636.0,1.18164]
[1729219205439,3.2078,2636.6,2636.0,0.4132]
[1729219205440,2.96,2636.4,2636.0,0.4132]
[1729219205641,1.20359,2636.5,2636.2,0.37942]
[1729219205836,0.4082,2636.4,2636.1,0.37943]
[1729219206039,0.7876,2636.4,2636.1,0.37943]
[1729219206239,0.4082,2636.4,2636.1,0.37944]
[1729219206738,0.7876,2636.4,2636.1,0.37944]
[1729219206944,0.4082,2636.4,2636.0,0.4132]
[1729219207242,0.4082,2636.4,2636.2,0.37942]
[1729219207431,0.7876,2636.4,2636.2,0.37942]
[1729219207639,0.4082,2636.4,2636.3,0.37941]
[1729219207940,0.4082,2636.4,2636.0,0.4132]
[1729219208143,0.4082,2636.4,2636.2,0.37942]
[1729219208537,0.4082,2636.4,2636.3,0.37941]
[1729219212250,0.4082,2636.4,2636.0,0.4132]
[1729219212451,0.7876,2636.4,2636.1,0.37944]
[1729219212748,3.6372,2636.3,2636.0,0.4132]
[1729219212949,4.0382,2636.3,2636.0,0.4132]
[1729219213148,0.37944,2636.1,2635.9,3.2078]
[1729219213448,4.0382,2636.3,2635.9,3.2078]
[1729219213647,0.77825,2636.0,2635.9,3.2078]
[1729219214944,0.3988,2636.0,2635.9,3.2078]
[1729219216242,0.77825,2636.0,2635.9,3.2078]
[1729219216850,0.3988,2636.0,2635.9,3.2078]
[1729219217245,0.3988,2636.0,2635.9,3.58727]
[1729219219954,0.4294,2636.3,2635.9,3.2078]
[1729219220140,0.4035,2636.4,2636.3,0.37941]
[1729219220341,3.2078,2636.6,2636.0,3.7464]
[1729219220541,3.2078,2636.6,2636.5,0.37938]
[1729219221548,0.78281,2637.0,2636.5,0.37938]
[1729219221744,0.78281,2637.0,2636.7,0.37934]
[1729219221943,0.78281,2637.0,2636.8,0.37934]
[1729219222141,0.4035,2637.0,2636.6,0.37937]
[1729219222350,3.75953,2636.9,2636.6,0.37937]
[1729219222747,3.2078,2636.8,2636.6,0.37937]
[1729219222941,3.2078,2636.8,2636.3,0.64082874]
[1729219223146,3.2078,2636.8,2636.4,0.37939]
[1729219223355,3.2078,2636.8,2636.6,0.37936]
[1729219224247,3.2078,2636.8,2636.3,0.64082874]
[1729219224448,3.2078,2636.8,2636.6,0.37935]
[1729219224654,3.2078,2636.8,2636.7,0.37935]
[1729219226157,3.58715,2636.8,2636.6,0.37936]
[1729219226352,3.2078,2636.8,2636.7,0.37935]
[1729219227459,0.4035,2637.0,2636.6,6.1678]
[1729219227643,0.4035,2637.0,2636.9,0.37932]
[1729219228551,3.2078,2637.2,2637.1,0.37929]
[1729219231356,3.2078,2637.2,2637.0,0.3793]
[1729219231656,3.6213,2637.2,2637.0,0.3793]
[1729219231852,3.6213,2637.2,2636.8,0.4078]
[1729219232055,3.2078,2637.2,2637.1,0.37929]
[1729219234257,0.4286,2637.6,2637.5,0.37922]
[1729219234448,3.2078,2637.7,2637.6,0.37922]
[1729219236257,0.4199,2637.8,2637.4,0.3889]
[1729219236456,0.4199,2637.8,2637.7,0.37921]
[1729219237875,4.0432,2638.1,2637.5,3.20743222]
[1729219238062,4.0567,2638.1,2638.0,0.37916]
[1729219238258,3.6371,2638.1,2638.0,0.37916]
[1729219238958,0.4293,2638.1,2638.0,0.37916]
[1729219240065,0.80846,2638.1,2637.9,0.37917]
[1729219240564,0.4293,2638.1,2638.0,0.37916]
[1729219241569,0.4293,2638.1,2637.7,0.4265]
[1729219241865,0.4293,2638.1,2638.0,0.37916]
[1729219242060,0.80845,2638.1,2637.9,0.37917]
[1729219242868,0.80845,2638.1,2637.7,0.8057]
[1729219242869,0.37918,2637.9,2637.7,0.8057]
[1729219243165,0.4293,2638.1,2637.7,0.3792]
[1729219243466,41.17917,2638.0,2637.7,0.3792]
[1729219244157,40.8,2638.0,2637.5,0.67333222]
[1729219244358,2.96,2638.0,2637.6,0.37921]
[1729219244564,0.37922,2637.7,2637.4,0.76815]
[1729219244761,0.4188,2637.6,2637.4,0.3889]
[1729219244963,0.4188,2637.6,2637.5,0.37924]
[1729219247365,3.2078,2638.0,2637.8,0.37919]
[1729219247562,0.3921,2637.9,2637.8,0.37919]
[1729219247967,0.37922,2637.6,2637.5,0.37924]
[1729219248170,0.37922,2637.7,2637.5,0.37923]
[1729219248469,0.8382,2637.6,2637.4,0.3889]
[1729219248765,0.8382,2637.6,2637.5,0.37924]
[1729219252364,6.1678,2638.0,2637.5,0.37923]
[1729219252365,0.37921,2637.7,2637.5,0.37923]
[1729219252565,0.803,2637.9,2637.4,0.3889]
[1729219253070,0.3792,2637.8,2637.6,0.37922]
[1729219253772,3.587,2637.8,2637.7,0.37921]
[1729219254176,7.3782,2637.8,2637.7,0.37921]
[1729219254659,15.959,2637.8,2637.1,0.24217858]
[1729219254971,2.96,2637.6,2637.2,0.3999]
[1729219255161,0.37932,2637.0,2636.5,4.093]
[1729219255468,3.2078,2637.2,2636.8,0.37933]
[1729219255768,3.2078,2637.2,2636.6,0.812]
[1729219255769,0.37933,2636.9,2636.7,0.37935]
[1729219255959,0.37932,2636.9,2636.7,0.37935]
[1729219256159,0.37931,2637.0,2636.7,0.37934]
[1729219256568,0.37931,2637.0,2636.7,0.37935]
[1729219256869,0.37931,2637.0,2636.8,0.37934]
[1729219257064,2.96,2637.1,2636.6,0.812]
[1729219257267,0.37934,2636.8,2636.6,0.37936]
[1729219257576,0.37937,2636.6,2636.4,0.37939]
[1729219257770,2.96,2636.7,2636.2,0.8003]
[1729219257771,3.3732,2636.7,2636.2,0.37942]
[1729219257964,3.3394,2636.4,2636.2,0.37942]
[1729219258158,2.96,2636.4,2636.2,0.37942]
[1729219258562,0.79939,2636.5,2636.2,0.37942]
[1729219258763,0.42,2636.5,2636.0,0.4118]
[1729219258962,0.42,2636.5,2636.3,0.3794]
[1729219259163,0.79939,2636.5,2636.0,0.4118]
[1729219259368,0.79939,2636.5,2636.2,0.37941]
[1729219259568,0.3794,2636.4,2636.2,0.37941]
[1729219259774,3.38,2636.5,2636.0,0.4118]
[1729219260074,6.1678,2636.3,2635.5,7.2428]
[1729219260386,3.58722,2636.3,2636.0,0.37944]
[1729219261060,3.2078,2636.3,2635.9,0.4118]
[1729219261259,0.37943,2636.2,2635.9,0.79126]
[1729219261464,0.80233,2636.2,2636.0,0.37945]
[1729219261672,0.80233,2636.2,2635.9,0.79125]
[1729219262063,0.4229,2636.2,2636.0,0.37945]
[1729219262263,3.2078,2636.3,2635.9,0.4118]
[1729219262460,3.2078,2636.3,2636.2,0.37942]
[1729219263565,0.80228,2636.5,2636.3,0.3794]
[1729219263764,6.1678,2636.7,2636.0,2.96]
[1729219263765,3.2078,2636.7,2636.0,2.96]
[1729219263974,3.58716,2636.7,2636.5,0.37937]
[1729219264268,3.2078,2636.7,2636.6,0.37937]
[1729219266472,0.80221,2637.0,2636.8,0.37933]
[1729219266872,0.4229,2637.0,2636.5,0.4185]
[1729219267079,0.80222,2637.0,2636.5,0.4185]
[1729219267377,0.80222,2637.0,2636.6,0.37935]
[1729219267378,0.37933,2636.9,2636.6,0.37935]
[1729219267577,0.37933,2636.9,2636.7,0.37935]
[1729219267886,0.4229,2637.0,2636.5,0.4185]
[1729219268078,0.37933,2636.9,2636.5,0.4185]
[1729219268284,0.37933,2636.9,2636.7,0.37935]
[1729219268779,0.37935,2636.8,2636.6,0.37936]
[1729219269081,0.37935,2636.8,2636.5,0.4185]
[1729219269466,0.37935,2636.8,2636.6,0.37936]
[1729219270378,0.37937,2636.6,2636.4,0.37939]
[1729219270579,0.37937,2636.6,2636.3,0.3794]
[1729219270877,0.37937,2636.6,2636.4,0.37939]
[1729219271279,3.2078,2636.8,2636.2,0.4088]
[1729219271581,3.2078,2636.8,2636.4,2.96]
[1729219271881,3.2078,2636.8,2636.2,1.35734]
[1729219271882,3.2078,2636.8,2636.7,0.37935]
[1729219273678,3.58714,2636.8,2636.7,0.37935]
[1729219273884,3.2078,2636.8,2636.7,0.37935]
[1729219275479,3.58714,2636.8,2636.6,0.37935]
[1729219275678,3.58714,2636.8,2636.7,0.37935]
[1729219276476,3.58714,2636.8,2636.2,4.31734]
[1729219276677,3.58714,2636.8,2636.6,0.37935]
[1729219276971,3.2078,2636.8,2636.7,0.37935]
[1729219277872,3.6081,2637.4,2636.7,13.0006]
[1729219278072,3.2078,2637.4,2636.8,5.16655]
[1729219278272,0.80825,2637.5,2637.3,0.37927]
[1729219278883,0.37925,2637.4,2636.8,5.16655]
[1729219279077,0.80824,2637.5,2637.3,0.37927]
[1729219279484,0.429,2637.5,2636.8,5.16655]
[1729219279780,0.80825,2637.5,2637.3,0.37927]
[1729219280474,0.37926,2637.4,2637.2,0.37927]
[1729219280680,0.80824,2637.5,2637.3,0.37926]
[1729219281174,0.429,2637.5,2637.4,0.37925]
[1729219281381,0.80824,2637.5,2637.4,0.37925]
[1729219282089,0.80824,2637.5,2636.9,0.94832]
[1729219282284,0.429,2637.5,2637.3,0.37925]
[1729219282486,0.80824,2637.5,2637.3,0.37925]
[1729219282677,0.80824,2637.5,2636.8,4.46935193]
[1729219282896,0.80824,2637.5,2637.4,0.37925]
[1729219282897,0.429,2637.5,2637.4,0.37925]
[1729219283083,0.37921,2637.7,2637.5,0.37923]
[1729219283384,3.587,2637.8,2637.6,0.79322]
[1729219283696,3.2078,2637.8,2637.2,0.4121]
[1729219283892,6.1678,2637.8,2637.3,0.8304]
[1729219284488,0.37921,2637.7,2637.5,0.37923]
[1729219284687,0.37923,2637.6,2637.3,0.8304]
[1729219284877,0.80763,2637.6,2637.4,0.37925]
[1729219285486,0.4284,2637.6,2637.4,0.37925]
[1729219285683,0.37925,2637.4,2637.3,1.20967]
[1729219285990,0.37925,2637.4,2637.3,0.37927]
[1729219286283,0.37927,2637.3,2637.0,1.48081703]
[1729219286501,0.37927,2637.3,2637.2,0.37928]
[1729219286784,0.37927,2637.3,2637.0,1.1985]
[1729219286983,0.37929,2637.2,2637.0,0.8192]
[1729219287178,2.96,2637.4,2637.1,0.37929]
[1729219287394,0.37927,2637.3,2637.1,0.37929]
[1729219287985,4.0425,2637.5,2637.0,0.8192]
[1729219287986,4.0425,2637.5,2637.3,0.37926]
[1729219288183,3.58705,2637.5,2637.3,0.37925]
[1729219288493,3.58705,2637.5,2637.1,0.389]
[1729219288677,3.2078,2637.5,2637.4,0.37925]
[1729219288876,3.2078,2637.5,2637.1,0.389]
[1729219289082,3.2078,2637.5,2637.4,0.37925]
[1729219290192,0.37923,2637.6,2637.4,0.37925]
[1729219290395,0.37923,2637.6,2637.1,0.389]
[1729219290396,0.37923,2637.6,2637.5,0.393]
[1729219294293,0.37923,2637.6,2637.5,0.77224]
[1729219294799,0.37923,2637.6,2637.5,0.393]
[1729219295293,44.0078,2638.1,2637.5,0.393]
[1729219295495,0.37916,2638.0,2637.8,0.37919]
[1729219295796,0.3792,2637.8,2637.6,0.37921]
[1729219296296,0.3792,2637.8,2637.7,0.37921]
[1729219296488,0.3792,2637.8,2637.6,0.37921]
[1729219296689,0.3792,2637.8,2637.7,0.37921]
[1729219297499,3.74299,2637.9,2637.7,0.37921]
[1729219297798,6.95079,2637.9,2637.7,0.37921]
[1729219298693,0.3952,2637.8,2637.7,0.37921]
[1729219298995,0.77439,2637.8,2637.7,0.37921]
[1729219302500,0.3952,2637.8,2637.5,0.393]
[1729219302792,0.37925,2637.5,2637.3,0.37926]
[1729219302997,0.78005,2637.4,2637.3,0.37926]
[1729219303297,0.78005,2637.4,2637.2,3.597]
[1729219303498,0.78005,2637.4,2637.3,0.37927]
[1729219303702,0.78005,2637.4,2637.2,3.597]
[1729219303999,0.4008,2637.4,2637.2,3.597]
[1729219304198,0.78005,2637.4,2637.3,0.37927]
[1729219304891,0.78005,2637.4,2637.2,3.597]
[1729219305091,0.78005,2637.4,2637.3,0.37927]
[1729219305293,0.78005,2637.4,2637.2,0.3892]
[1729219305493,0.78005,2637.4,2637.2,3.97627]
[1729219305788,0.4008,2637.4,2637.2,3.97628]
[1729219305997,0.78006,2637.4,2637.2,3.97628]
[1729219306594,0.78006,2637.4,2637.2,0.76848]
[1729219306793,0.4008,2637.4,2637.2,3.597]
[1729219306994,3.3608,2637.4,2636.8,0.8329]
[1729219307293,0.37932,2637.0,2636.8,1.21363]
[1729219307497,0.4015,2636.9,2636.8,1.21363]
[1729219307701,0.80379,2637.2,2637.0,0.3793]
[1729219308400,0.4245,2637.2,2637.0,0.3793]
[1729219308589,0.3793,2637.1,2636.8,0.8343]
[1729219308792,0.3793,2637.1,2637.0,0.37931]
[1729219308999,0.80379,2637.2,2637.0,0.37931]
[1729219309199,2.96,2637.4,2637.0,0.37931]
[1729219309391,0.37929,2637.1,2637.0,0.37931]
[1729219309596,0.37929,2637.1,2636.9,0.4247]
[1729219309597,0.4245,2637.2,2636.9,0.80402]
[1729219309789,0.37931,2637.0,2636.9,0.37932]
[1729219309996,0.37929,2637.1,2637.0,0.3793]
[1729219310194,0.4245,2637.2,2636.9,0.37932]
[1729219310501,0.3793,2637.1,2636.9,0.37932]
[1729219310796,0.3793,2637.1,2636.8,0.8343]
[1729219311103,0.3793,2637.1,2636.9,0.37932]
[1729219311500,0.3793,2637.1,2636.9,0.37931]
[1729219311801,0.3793,2637.1,2636.8,0.8343]
[1729219311802,0.37929,2637.1,2636.8,0.8343]
[1729219311990,0.4245,2637.2,2636.8,0.8343]
[1729219312191,0.3793,2637.1,2636.9,0.37932]
[1729219312391,0.37932,2637.0,2636.8,1.21363]
[1729219312890,0.37932,2637.0,2636.6,0.66686767]
[1729219312891,0.37935,2636.8,2636.6,0.37936]
[1729219313101,2.96,2636.9,2636.4,3.2078]
[1729219313102,0.37936,2636.7,2636.5,1.19257]
[1729219313397,0.4031,2636.8,2636.5,0.8132]
[1729219313699,0.4031,2636.8,2636.5,1.19257]
[1729219313700,0.37937,2636.6,2636.5,1.19257]
[1729219313898,0.37937,2636.6,2636.3,0.3794]
[1729219314086,0.37938,2636.6,2636.3,0.3794]
[1729219314292,0.37939,2636.5,2636.3,0.3794]
[1729219314492,0.37939,2636.5,2636.2,0.8018]
[1729219314493,2.96,2636.5,2636.2,0.8018]
[1729219314691,0.7883,2636.4,2636.2,0.8018]
[1729219315002,0.37944,2636.1,2635.9,0.37946]
[1729219315303,0.37944,2636.1,2635.7,0.8018]
[1729219315304,3.2078,2636.1,2635.7,0.8018]
[1729219315601,3.2078,2636.1,2636.0,0.37945]
[1729219316006,3.2078,2636.1,2635.9,0.37946]
[1729219316205,3.58724,2636.1,2635.9,0.37946]
[1729219316502,0.37946,2636.0,2635.7,1.18128]
[1729219316702,0.78836,2636.0,2635.7,1.18129]
[1729219317096,0.78836,2636.0,2635.7,0.8018]
[1729219317303,0.4089,2636.0,2635.8,0.37948]
[1729219317807,0.4089,2636.0,2635.7,0.8018]
[1729219317808,0.4089,2636.0,2635.9,0.37947]
[1729219318900,0.4089,2636.0,2635.7,0.8018]
[1729219319304,0.4089,2636.0,2635.8,0.37948]
[1729219319607,0.4089,2636.0,2635.9,0.37947]
[1729219320696,0.4089,2636.0,2635.8,0.37948]
[1729219320903,0.78836,2636.0,2635.7,1.18129]
[1729219321107,3.2078,2635.8,2635.7,0.3894]
[1729219321400,3.2078,2635.8,2635.7,0.7689]
[1729219322397,0.8341,2636.0,2635.8,0.37948]
[1729219322606,3.2078,2635.9,2635.8,0.37948]
[1729219325096,3.2078,2635.9,2635.7,0.3894]
[1729219325097,3.6167,2636.0,2635.9,0.37947]
[1729219325510,3.6167,2636.0,2635.7,0.3894]
[1729219325511,3.99615,2636.0,2635.8,0.37948]
[1729219325913,3.33948,2635.9,2635.6,0.3795]
[1729219326107,3.2078,2635.7,2635.6,0.3795]
[1729219326302,3.2078,2635.7,2635.5,0.7899]
[1729219326502,3.2078,2635.7,2635.5,0.3948]
[1729219326503,0.4087,2635.6,2635.5,0.3948]
[1729219326704,0.4087,2635.6,2635.5,0.37952]
[1729219327008,0.78822,2635.6,2635.4,0.77434]
[1729219327499,0.78822,2635.6,2635.4,0.37953]
[1729219327703,0.4087,2635.6,2635.4,0.37953]
[1729219328203,0.78821,2635.6,2635.4,0.37953]
[1729219329010,0.4087,2635.6,2635.4,0.37953]
[1729219329512,0.78821,2635.6,2635.4,0.37953]
[1729219332010,3.99601,2635.6,2635.4,0.37953]
[1729219333513,0.37953,2635.5,2635.3,0.37955]
[1729219333713,3.6165,2635.6,2635.2,0.3948]
[1729219334015,0.37953,2635.5,2635.3,0.37954]
[1729219334314,3.99602,2635.6,2635.4,0.37954]
[1729219334712,3.6165,2635.6,2635.2,0.3948]
[1729219334909,3.6165,2635.6,2634.9,3.2078]
[1729219335216,0.37955,2635.4,2635.1,0.37958]
[1729219335515,0.3796,2635.0,2634.7,0.37963]
[1729219335814,0.4018,2634.9,2634.8,0.37963]
[1729219336414,3.2078,2635.0,2634.9,0.37961]
[1729219336612,3.2078,2635.3,2634.7,0.94908]
[1729219336816,6.1678,2635.3,2634.6,4.15693]
[1729219337117,0.78137,2635.2,2635.0,0.37959]
[1729219337908,0.4018,2635.2,2635.0,0.37959]
[1729219338112,0.3796,2635.0,2634.9,0.3796]
[1729219338309,3.5874,2635.0,2634.8,0.37962]
[1729219338616,3.5874,2635.0,2634.8,0.37961]
[1729219338812,4.0137,2635.0,2634.8,0.37961]
[1729219339210,3.6341,2635.0,2634.5,1.09408398]
[1729219339515,0.37963,2634.8,2634.6,0.37964]
[1729219339821,0.37965,2634.7,2634.5,1.47374398]
[1729219340018,0.79175,2634.7,2634.5,1.47374398]
[1729219340219,0.4121,2634.7,2634.6,0.37965]
[1729219340424,0.79174,2634.7,2634.6,0.37965]
[1729219340715,0.4121,2634.7,2634.6,0.37965]
[1729219342117,4.01371,2635.0,2634.5,1.09408398]
[1729219342318,0.4016,2634.9,2634.5,1.09408398]
[1729219342509,0.78122,2634.9,2634.8,0.37963]
[1729219342819,0.78122,2634.9,2634.7,0.37963]
[1729219343213,0.78122,2634.9,2634.5,1.09408398]
[1729219343521,0.78122,2634.9,2634.7,0.37963]
[1729219343722,0.78122,2634.9,2634.8,0.37963]
[1729219345216,3.98902,2634.9,2634.5,1.09408398]
[1729219345422,3.98902,2634.9,2634.7,0.37963]
[1729219345612,3.98902,2634.9,2634.8,0.37963]
[1729219346517,3.98902,2634.9,2634.5,1.09408398]
[1729219346909,3.98902,2634.9,2634.7,0.37963]
[1729219347309,0.78122,2634.9,2634.6,0.37965]
[1729219347509,0.78122,2634.9,2634.7,0.37963]
[1729219347510,3.2078,2634.8,2634.7,0.37963]
[1729219348319,0.4016,2634.9,2634.8,0.37963]
[1729219349221,0.78121,2634.9,2634.8,0.37963]
[1729219349624,3.3616,2634.9,2634.2,3.2078]
[1729219349818,1.37,2634.3,2634.2,0.3797]
[1729219350022,1.7497,2634.3,2634.2,0.3797]
[1729219350227,0.37971,2634.2,2634.1,1.18372]
[1729219350433,1.37,2634.2,2634.1,1.18372]
[1729219350629,1.74971,2634.2,2634.1,0.804]
[1729219350819,1.37,2634.2,2634.1,1.18373]
[1729219351325,1.74971,2634.2,2634.1,1.18373]
[1729219351525,1.37,2634.2,2634.1,1.18373]
[1729219351826,0.4258,2634.4,2634.1,0.804]
[1729219351827,3.3858,2634.4,2634.1,0.804]
[1729219352026,0.37971,2634.2,2634.1,0.804]
[1729219352331,0.37971,2634.3,2634.1,1.18373]
[1729219352635,0.37973,2634.1,2633.9,0.37974]
[1729219352832,0.4225,2634.0,2633.9,0.37974]
[1729219353725,0.4225,2634.0,2633.6,0.793]
[1729219353726,0.4225,2634.0,2633.6,0.3995]
[1729219354032,3.33979,2633.7,2633.5,0.3798]
[1729219354225,3.6047,2633.6,2633.5,0.6313246]
[1729219355127,3.6047,2633.6,2633.5,0.2515146]
[1729219355321,3.6047,2633.6,2633.5,0.37981]
[1729219355527,3.6047,2633.6,2633.4,0.37981]
[1729219355727,3.6047,2633.6,2633.5,0.37981]
[1729219357027,3.6047,2633.6,2633.4,0.24799101]
[1729219357233,6.5647,2633.6,2633.2,0.8407]
[1729219357426,0.37984,2633.3,2633.2,0.4162]
[1729219357733,3.2078,2633.3,2633.1,0.4067]
[1729219358130,3.2078,2633.3,2633.2,0.80556]
[1729219358730,2.25741615,2633.3,2633.2,0.80556]
[1729219359236,3.6047,2633.6,2633.2,0.4257]
[1729219359526,3.6047,2633.6,2633.4,0.37981]
[1729219359720,3.6047,2633.6,2633.5,0.37981]
[1729219359924,3.6047,2633.6,2633.3,0.4263]
[1729219360123,3.6047,2633.6,2633.4,0.37983]
[1729219360533,3.6047,2633.6,2633.5,0.37981]
[1729219360737,0.3969,2633.6,2633.5,0.37981]
[1729219360926,3.6047,2633.6,2633.5,0.37981]
[1729219361638,3.6047,2633.6,2633.4,0.37981]
[1729219361931,3.6047,2633.6,2633.3,0.4263]
[1729219361932,3.6047,2633.6,2633.5,0.37981]
[1729219362134,0.37981,2633.5,2633.3,0.80613]
[1729219362439,3.6047,2633.6,2633.3,0.80613]
[1729219362738,3.98451,2633.6,2633.3,0.80613]
[1729219363035,3.98451,2633.6,2633.4,0.37983]
[1729219363231,3.6047,2633.6,2633.2,0.4257]
[1729219363425,3.6047,2633.6,2633.1,0.4067]
[1729219363426,0.37984,2633.4,2633.1,0.78656]
[1729219363733,3.58764,2633.3,2633.1,0.78656]
[1729219364032,3.58764,2633.3,2633.1,0.4067]
[1729219364234,0.4108,2633.2,2633.1,0.78657]
[1729219364430,0.4108,2633.2,2633.1,0.4067]
[1729219364835,0.4108,2633.2,2633.1,0.78657]
[1729219365835,3.2078,2633.3,2633.2,0.37986]
[1729219366026,2.96,2633.7,2633.1,0.4067]
[1729219366027,3.2078,2633.6,2633.1,0.4067]
[1729219366235,0.37981,2633.5,2633.1,0.4067]
[1729219366627,0.4261,2633.4,2633.1,0.4067]
[1729219367434,3.2078,2633.6,2633.1,0.4067]
[1729219367634,3.2078,2633.9,2633.8,0.37977]
[1729219367831,0.4261,2634.4,2633.9,0.3975]
[1729219368137,0.80579,2634.4,2634.1,0.37971]
[1729219368530,0.3797,2634.3,2634.1,0.37971]
[1729219368725,0.80579,2634.4,2634.1,0.37971]
[1729219369038,3.3397,2634.3,2634.0,0.37973]
[1729219369741,0.3797,2634.3,2634.0,0.37973]
[1729219370141,0.4261,2634.4,2634.1,0.37972]
[1729219370142,0.80579,2634.4,2634.1,0.37972]
[1729219371534,0.80579,2634.4,2634.2,0.3797]
[1729219371741,0.4261,2634.4,2634.0,0.37974]
[1729219371935,0.80579,2634.4,2634.2,0.3797]
[1729219372338,0.80579,2634.4,2633.9,0.64718537]
[1729219372339,0.4261,2634.4,2633.9,0.64718537]
[1729219372744,0.4261,2634.4,2633.9,0.77725]
[1729219372745,2.96,2634.0,2633.9,0.77725]
[1729219372935,2.96,2634.0,2633.9,0.3975]
[1729219372936,0.37974,2634.0,2633.9,0.3975]
[1729219373234,6.1678,2634.2,2633.7,0.24768631]
[1729219373432,0.4261,2634.4,2633.8,0.4035]
[1729219373631,0.37971,2634.3,2634.1,0.37973]
[1729219373842,2.96,2634.3,2633.8,0.4035]
[1729219374136,3.6256,2634.2,2633.8,0.4035]
[1729219374542,4.00532,2634.2,2633.9,0.37975]
[1729219374940,4.00532,2634.2,2633.8,0.4035]
[1729219375148,3.6256,2634.2,2634.0,0.37973]
[1729219375443,3.6256,2634.2,2634.1,0.37973]
[1729219375630,3.2078,2634.2,2634.1,0.37973]
[1729219375936,0.4261,2634.4,2634.3,0.3797]
[1729219377051,3.2078,2634.6,2634.3,3.796]
[1729219377246,3.75107,2634.5,2634.3,0.37969]
[1729219377437,3.3714,2634.5,2634.0,0.4194]
[1729219377936,3.75107,2634.5,2634.3,0.3797]
[1729219378137,0.37969,2634.4,2634.2,0.3797]
[1729219378447,0.3797,2634.3,2634.1,0.37972]
[1729219378741,6.5568,2634.3,2633.9,3.2078]
[1729219378938,0.80272,2634.2,2633.9,0.37975]
[1729219379244,0.37973,2634.1,2633.9,0.37975]
[1729219379540,0.37976,2633.9,2633.8,0.25317059]
[1729219379742,0.37976,2633.9,2633.7,0.37978]
[1729219379743,6.54755,2634.0,2633.7,0.37978]
[1729219380456,3.33978,2633.8,2633.4,3.624]
[1729219380745,3.2078,2634.0,2633.7,0.37978]
[1729219380944,0.37977,2633.9,2633.4,3.624]
[1729219381244,0.37977,2633.8,2633.6,0.37979]
[1729219381435,2.96,2633.7,2633.4,3.624]
[1729219381636,2.96,2633.7,2633.6,0.3798]
[1729219381637,3.3719,2633.7,2633.6,0.3798]
[1729219382038,0.4119,2633.7,2633.6,0.3798]
[1729219382442,3.58755,2634.0,2633.4,3.86782081]
[1729219382642,3.58755,2634.0,2633.8,0.37976]
[1729219382938,3.2078,2634.0,2633.8,0.37977]
[1729219383146,3.2078,2634.0,2633.9,0.37976]
[1729219386247,6.1678,2634.0,2633.4,4.81739081]
[1729219386436,2.96,2633.7,2633.4,3.624]
[1729219386642,0.8085,2633.6,2633.4,4.00382]
[1729219386844,0.8541,2633.6,2633.4,3.2078]
[1729219387038,0.8541,2633.6,2633.5,0.37981]
[1729219387246,0.8541,2633.6,2633.4,3.2078]
[1729219387447,1.2339,2633.6,2633.4,3.45065205]
[1729219387748,0.8541,2633.6,2633.4,3.45065205]
[1729219388046,3.33981,2633.5,2633.4,3.45065205]